[Event "Live Chess"]
[Site "Chess.com"]
[Date "2024.06.02"]
[Round "-"]
[White "TJ-W"]
[Black "Purple1szed"]
[Result "0-1"]
[WhiteElo "1570"]
[BlackElo "2081"]
[TimeControl "300"]
[EndTime "2:25:08 PDT"]
[Termination "Purple1szed won by checkmate"]

1. e4 {[%clk 0:04:58.4]} 1... e5 {[%clk 0:04:59.2]} 2. Nf3 {[%clk 0:04:56.3]}
2... Nc6 {[%clk 0:04:58.8]} 3. Bc4 {[%clk 0:04:53.5]} 3... Nf6 {[%clk
0:04:58.2]} 4. Ng5 {[%clk 0:04:51.7]} 4... Bc5 {[%clk 0:04:57.5]} 5. Nxf7 {[%clk
0:04:47.7]} 5... Bxf2+ {[%clk 0:04:56.1]} 6. Kxf2 {[%clk 0:04:45.1]} 6... Nxe4+
{[%clk 0:04:55.3]} 7. Kf1 {[%clk 0:04:24.6]} 7... Nd4 {[%clk 0:04:43.6]} 8. Nxh8
{[%clk 0:04:00.7]} 8... Qf6+ {[%clk 0:04:42.3]} 9. Qf3 {[%clk 0:03:45.8]} 9...
Nxf3 {[%clk 0:04:41.4]} 10. gxf3 {[%clk 0:03:45.5]} 10... Qxf3+ {[%clk
0:04:40.9]} 11. Kg1 {[%clk 0:03:44]} 11... Qf2# {[%clk 0:04:40.5]} 0-1

[Event "Live Chess"]
[Site "Chess.com"]
[Date "2024.06.02"]
[Round "-"]
[White "JohanKjeldahl"]
[Black "defenderalist"]
[Result "0-1"]
[WhiteElo "1805"]
[BlackElo "1545"]
[TimeControl "300"]
[EndTime "2:25:23 PDT"]
[Termination "defenderalist won by checkmate"]

1. e4 {[%clk 0:04:57.5]} 1... c5 {[%clk 0:04:56]} 2. Nf3 {[%clk 0:04:55.6]} 2...
d6 {[%clk 0:04:55.9]} 3. d4 {[%clk 0:04:54.4]} 3... cxd4 {[%clk 0:04:49.6]} 4.
Nxd4 {[%clk 0:04:54]} 4... Nf6 {[%clk 0:04:47.3]} 5. Nc3 {[%clk 0:04:53.3]} 5...
a6 {[%clk 0:04:46.9]} 6. Bg5 {[%clk 0:04:51.5]} 6... e6 {[%clk 0:04:39.2]} 7. f4
{[%clk 0:04:50]} 7... Be7 {[%clk 0:04:37.8]} 8. Qf3 {[%clk 0:04:48.1]} 8... h6
{[%clk 0:04:36.5]} 9. Bh4 {[%clk 0:04:42.9]} 9... Nc6 {[%clk 0:04:31.8]} 10.
O-O-O {[%clk 0:04:39.4]} 10... Nxd4 {[%clk 0:03:59.5]} 11. Rxd4 {[%clk
0:04:36.7]} 11... b5 {[%clk 0:03:53.8]} 12. Bxf6 {[%clk 0:04:31.1]} 12... Bxf6
{[%clk 0:03:52]} 13. e5 {[%clk 0:04:28.6]} 13... Be7 {[%clk 0:03:40.9]} 14. Qxa8
{[%clk 0:04:26.1]} 14... O-O {[%clk 0:03:35]} 15. exd6 {[%clk 0:04:22.4]} 15...
Bf6 {[%clk 0:03:33.3]} 16. Rd2 {[%clk 0:04:13.3]} 16... Bxc3 {[%clk 0:03:29.7]}
17. bxc3 {[%clk 0:04:10.9]} 17... Qa5 {[%clk 0:03:28.4]} 18. Qe4 {[%clk
0:04:05.4]} 18... Qxa2 {[%clk 0:03:19.8]} 19. Kd1 {[%clk 0:04:01.3]} 19... Bd7
{[%clk 0:03:02.5]} 20. Bd3 {[%clk 0:03:53.8]} 20... f5 {[%clk 0:03:01.4]} 21.
Qe1 {[%clk 0:03:50.6]} 21... Be8 {[%clk 0:02:55.2]} 22. c4 {[%clk 0:03:43.5]}
22... Bh5+ {[%clk 0:02:52.9]} 23. Be2 {[%clk 0:03:40.1]} 23... Qb1# {[%clk
0:02:51.8]} 0-1

[Event "Live Chess"]
[Site "Chess.com"]
[Date "2024.06.02"]
[Round "-"]
[White "CheckThis4"]
[Black "lateforthesky"]
[Result "1-0"]
[WhiteElo "2696"]
[BlackElo "2076"]
[TimeControl "300"]
[EndTime "2:25:46 PDT"]
[Termination "CheckThis4 won by resignation"]

1. d4 {[%clk 0:04:55.7]} 1... Nf6 {[%clk 0:04:55.5]} 2. c4 {[%clk 0:04:54.6]}
2... g6 {[%clk 0:04:54.2]} 3. Nc3 {[%clk 0:04:52.4]} 3... Bg7 {[%clk 0:04:53.3]}
4. e4 {[%clk 0:04:49.2]} 4... d6 {[%clk 0:04:52.6]} 5. Nge2 {[%clk 0:04:48.1]}
5... c6 {[%clk 0:04:49.1]} 6. Ng3 {[%clk 0:04:46.6]} 6... a6 {[%clk 0:04:47.7]}
7. Bd3 {[%clk 0:04:37.1]} 7... b5 {[%clk 0:04:45.9]} 8. a3 {[%clk 0:04:35.5]}
8... bxc4 {[%clk 0:04:37.9]} 9. Bxc4 {[%clk 0:04:33.8]} 9... d5 {[%clk
0:04:37.2]} 10. exd5 {[%clk 0:04:29]} 10... cxd5 {[%clk 0:04:35.6]} 11. Bd3
{[%clk 0:04:25.3]} 11... O-O {[%clk 0:04:33.9]} 12. h3 {[%clk 0:04:16.1]} 12...
Nc6 {[%clk 0:04:31.9]} 13. Be3 {[%clk 0:04:14.4]} 13... e5 {[%clk 0:04:26.3]}
14. dxe5 {[%clk 0:04:08.7]} 14... Nxe5 {[%clk 0:04:16.4]} 15. Be2 {[%clk
0:03:40]} 15... Be6 {[%clk 0:03:51.8]} 16. O-O {[%clk 0:03:35.8]} 16... Nc4
{[%clk 0:03:37.3]} 17. Bxc4 {[%clk 0:03:21.8]} 17... dxc4 {[%clk 0:03:35.6]} 18.
Qf3 {[%clk 0:03:16.3]} 18... Qc7 {[%clk 0:03:11.8]} 19. Rfd1 {[%clk 0:03:11.5]}
19... Rad8 {[%clk 0:03:00.3]} 20. Rac1 {[%clk 0:02:57.3]} 20... Rxd1+ {[%clk
0:02:56.9]} 21. Rxd1 {[%clk 0:02:55.8]} 21... Rd8 {[%clk 0:02:47.7]} 22. Rxd8+
{[%clk 0:02:47.5]} 22... Qxd8 {[%clk 0:02:46.5]} 23. Qc6 {[%clk 0:02:45.6]}
23... h6 {[%clk 0:01:56]} 24. Qxa6 {[%clk 0:02:41.5]} 24... Qd3 {[%clk
0:01:48.6]} 25. Qb5 {[%clk 0:02:25.1]} 25... Nd5 {[%clk 0:01:42.6]} 26. Nxd5
{[%clk 0:02:17.9]} 26... Qxd5 {[%clk 0:01:28.1]} 27. Qxd5 {[%clk 0:01:54.6]}
27... Bxd5 {[%clk 0:01:27]} 28. Bc1 {[%clk 0:01:54.2]} 28... Kf8 {[%clk
0:01:23.1]} 29. Ne2 {[%clk 0:01:50.7]} 29... Ke7 {[%clk 0:01:19.6]} 30. f3
{[%clk 0:01:49.6]} 30... Kd6 {[%clk 0:01:15.6]} 31. Kf2 {[%clk 0:01:48]} 31...
Kc5 {[%clk 0:01:04.7]} 32. Ke3 {[%clk 0:01:47]} 32... Kb5 {[%clk 0:00:59.5]} 33.
Nc3+ {[%clk 0:01:41.2]} 33... Kc5 {[%clk 0:00:55.5]} 34. Nxd5 {[%clk 0:01:23.6]}
34... Kxd5 {[%clk 0:00:54.4]} 35. Kd2 {[%clk 0:01:14.8]} 35... c3+ {[%clk
0:00:41.1]} 36. bxc3 {[%clk 0:01:12.2]} 36... Kc4 {[%clk 0:00:40.4]} 37. Kc2
{[%clk 0:01:11.4]} 37... Bxc3 {[%clk 0:00:38]} 38. Bxh6 {[%clk 0:01:09.1]} 38...
Bd4 {[%clk 0:00:28.5]} 39. Bd2 {[%clk 0:01:07]} 39... Bc5 {[%clk 0:00:26.2]} 40.
a4 {[%clk 0:01:06]} 40... Kd4 {[%clk 0:00:18.9]} 41. h4 {[%clk 0:01:01.7]} 41...
Ke5 {[%clk 0:00:16.3]} 42. Kd3 {[%clk 0:00:59.9]} 42... Kf5 {[%clk 0:00:11.9]}
43. g4+ {[%clk 0:00:58.1]} 43... Ke5 {[%clk 0:00:08.6]} 44. a5 {[%clk
0:00:56.9]} 44... f5 {[%clk 0:00:05.7]} 45. a6 {[%clk 0:00:54]} 45... fxg4
{[%clk 0:00:03.8]} 46. fxg4 {[%clk 0:00:53.9]} 46... Kf6 {[%clk 0:00:02.6]} 47.
Kc4 {[%clk 0:00:49.1]} 1-0

[Event "Live Chess"]
[Site "Chess.com"]
[Date "2024.06.02"]
[Round "-"]
[White "raimundklein"]
[Black "grillage"]
[Result "0-1"]
[WhiteElo "1552"]
[BlackElo "1868"]
[TimeControl "300"]
[EndTime "2:25:56 PDT"]
[Termination "grillage won by resignation"]

1. e4 {[%clk 0:04:58.2]} 1... d5 {[%clk 0:04:58.1]} 2. exd5 {[%clk 0:04:56.8]}
2... Qxd5 {[%clk 0:04:56.5]} 3. Nc3 {[%clk 0:04:56.4]} 3... Qd8 {[%clk
0:04:54.8]} 4. d4 {[%clk 0:04:52.8]} 4... Nf6 {[%clk 0:04:53]} 5. h3 {[%clk
0:04:50.5]} 5... Bf5 {[%clk 0:04:49.1]} 6. Bc4 {[%clk 0:04:45.1]} 6... e6 {[%clk
0:04:45.2]} 7. Nf3 {[%clk 0:04:37.1]} 7... c6 {[%clk 0:04:43.1]} 8. Bb3 {[%clk
0:04:33.1]} 8... Bd6 {[%clk 0:04:38.9]} 9. Bg5 {[%clk 0:04:30.9]} 9... Nbd7
{[%clk 0:04:35.8]} 10. Qe2 {[%clk 0:04:23]} 10... O-O {[%clk 0:04:32.7]} 11.
O-O-O {[%clk 0:04:21.8]} 11... a5 {[%clk 0:04:25.5]} 12. a3 {[%clk 0:04:19.1]}
12... b5 {[%clk 0:04:23.6]} 13. Ne5 {[%clk 0:04:15.8]} 13... b4 {[%clk
0:04:13.6]} 14. axb4 {[%clk 0:04:12.3]} 14... axb4 {[%clk 0:04:12.1]} 15. Na4
{[%clk 0:04:02.8]} 15... Be7 {[%clk 0:04:02.2]} 16. Nxc6 {[%clk 0:03:59.3]}
16... Qe8 {[%clk 0:03:56.5]} 17. Nxe7+ {[%clk 0:03:51.3]} 17... Qxe7 {[%clk
0:03:55]} 18. d5 {[%clk 0:03:49.5]} 18... h6 {[%clk 0:03:44.7]} 19. dxe6 {[%clk
0:03:43.6]} 19... Bxe6 {[%clk 0:03:41]} 20. Bh4 {[%clk 0:03:28.4]} 20... g5
{[%clk 0:03:06.9]} 21. Bg3 {[%clk 0:03:26.2]} 21... Nc5 {[%clk 0:03:00.6]} 22.
Nxc5 {[%clk 0:03:19.2]} 22... Qxc5 {[%clk 0:02:57.5]} 23. Bd6 {[%clk 0:03:06.1]}
23... Ra1+ {[%clk 0:02:52.8]} 24. Kd2 {[%clk 0:03:01.2]} 24... Qxd6+ {[%clk
0:02:51.6]} 0-1

[Event "Live Chess"]
[Site "Chess.com"]
[Date "2024.06.02"]
[Round "-"]
[White "MagnersCarlsberg2870"]
[Black "silunn"]
[Result "0-1"]
[WhiteElo "1812"]
[BlackElo "2142"]
[TimeControl "300"]
[EndTime "2:26:02 PDT"]
[Termination "silunn won by resignation"]

1. d4 {[%clk 0:04:57.2]} 1... e6 {[%clk 0:04:59.9]} 2. Nd2 {[%clk 0:04:55.7]}
2... d5 {[%clk 0:04:58.8]} 3. e3 {[%clk 0:04:55]} 3... Nf6 {[%clk 0:04:58]} 4.
Bd3 {[%clk 0:04:53.9]} 4... c5 {[%clk 0:04:55.8]} 5. c3 {[%clk 0:04:52.8]} 5...
Nc6 {[%clk 0:04:53.5]} 6. f4 {[%clk 0:04:51.9]} 6... Be7 {[%clk 0:04:49.5]} 7.
Ngf3 {[%clk 0:04:50.7]} 7... a6 {[%clk 0:04:46.9]} 8. Qe2 {[%clk 0:04:49.3]}
8... b5 {[%clk 0:04:45.5]} 9. O-O {[%clk 0:04:48.1]} 9... Bb7 {[%clk 0:04:40.2]}
10. a3 {[%clk 0:04:42.5]} 10... b4 {[%clk 0:04:36.4]} 11. axb4 {[%clk
0:04:40.8]} 11... cxb4 {[%clk 0:04:33.3]} 12. Ne5 {[%clk 0:04:39.3]} 12... Na5
{[%clk 0:04:16.7]} 13. Kh1 {[%clk 0:04:26.5]} 13... bxc3 {[%clk 0:04:12]} 14.
bxc3 {[%clk 0:04:25.1]} 14... Rc8 {[%clk 0:04:08]} 15. c4 {[%clk 0:04:20.6]}
15... dxc4 {[%clk 0:04:02.4]} 16. Ndxc4 {[%clk 0:04:18.4]} 16... Nb3 {[%clk
0:03:54.5]} 17. Rb1 {[%clk 0:04:11.9]} 17... Nxc1 {[%clk 0:03:50.9]} 18. Rfxc1
{[%clk 0:04:09.8]} 18... Qd5 {[%clk 0:03:45.1]} 19. e4 {[%clk 0:03:32.7]} 19...
Nxe4 {[%clk 0:02:56.3]} 20. Nb6 {[%clk 0:03:30.9]} 20... Rxc1+ {[%clk
0:02:50.1]} 21. Rxc1 {[%clk 0:03:29.6]} 21... Qxd4 {[%clk 0:02:47.5]} 22. Bxe4
{[%clk 0:03:12.5]} 22... Bxe4 {[%clk 0:02:38.7]} 23. Rc8+ {[%clk 0:03:05]} 23...
Bd8 {[%clk 0:02:35.8]} 24. Rxd8+ {[%clk 0:02:24.4]} 24... Qxd8 {[%clk
0:02:32.8]} 25. h3 {[%clk 0:02:18]} 25... Qxb6 {[%clk 0:02:22.3]} 26. Qxe4
{[%clk 0:02:16.6]} 26... O-O {[%clk 0:02:21.5]} 27. Nd7 {[%clk 0:02:10.8]} 27...
Qd6 {[%clk 0:02:00.8]} 28. Nxf8 {[%clk 0:02:08.9]} 28... Kxf8 {[%clk 0:02:00.7]}
29. Qa8+ {[%clk 0:02:06.8]} 29... Ke7 {[%clk 0:01:59.5]} 30. Qb7+ {[%clk
0:02:05.7]} 30... Kf6 {[%clk 0:01:57.7]} 31. Qb2+ {[%clk 0:02:00.2]} 31... Kg6
{[%clk 0:01:50.6]} 32. Qc2+ {[%clk 0:01:57.1]} 32... f5 {[%clk 0:01:47.6]} 33.
g3 {[%clk 0:01:45.2]} 33... a5 {[%clk 0:01:37.1]} 34. Qa4 {[%clk 0:01:42]} 34...
Qb4 {[%clk 0:01:25.5]} 35. Qe8+ {[%clk 0:01:39.8]} 35... Kf6 {[%clk 0:01:22.7]}
36. Qf8+ {[%clk 0:01:37.7]} 36... Qxf8 {[%clk 0:01:21.1]} 0-1

[Event "Live Chess"]
[Site "Chess.com"]
[Date "2024.06.02"]
[Round "-"]
[White "Delacorta"]
[Black "ameetghasi100"]
[Result "0-1"]
[WhiteElo "1521"]
[BlackElo "2793"]
[TimeControl "300"]
[EndTime "2:26:23 PDT"]
[Termination "ameetghasi100 won by resignation"]

1. d4 {[%clk 0:04:56.5]} 1... c5 {[%clk 0:04:59.9]} 2. Nf3 {[%clk 0:04:55]} 2...
cxd4 {[%clk 0:04:58.2]} 3. Nxd4 {[%clk 0:04:52.9]} 3... e6 {[%clk 0:04:57.7]} 4.
e3 {[%clk 0:04:49.7]} 4... Nf6 {[%clk 0:04:56.9]} 5. Nd2 {[%clk 0:04:46.7]} 5...
a6 {[%clk 0:04:56.5]} 6. b3 {[%clk 0:04:45.5]} 6... Nc6 {[%clk 0:04:55.7]} 7.
Nxc6 {[%clk 0:04:42.6]} 7... bxc6 {[%clk 0:04:55.6]} 8. Bb2 {[%clk 0:04:39.3]}
8... d5 {[%clk 0:04:55.5]} 9. Nf3 {[%clk 0:04:35.1]} 9... Be7 {[%clk 0:04:54.9]}
10. Bd3 {[%clk 0:04:31.4]} 10... O-O {[%clk 0:04:53]} 11. Ne5 {[%clk 0:04:30.3]}
11... Bb7 {[%clk 0:04:52.1]} 12. O-O {[%clk 0:04:24.3]} 12... c5 {[%clk
0:04:51.5]} 13. c4 {[%clk 0:04:19.3]} 13... Qc7 {[%clk 0:04:49.2]} 14. f4 {[%clk
0:04:16.1]} 14... Rad8 {[%clk 0:04:48.6]} 15. Qc2 {[%clk 0:04:05.9]} 15... d4
{[%clk 0:04:44]} 16. exd4 {[%clk 0:04:02.8]} 16... cxd4 {[%clk 0:04:43.9]} 17.
Rae1 {[%clk 0:03:44.4]} 17... Bb4 {[%clk 0:04:41.1]} 18. Re2 {[%clk 0:03:33.3]}
18... a5 {[%clk 0:04:40.7]} 19. a3 {[%clk 0:03:24.2]} 19... Bc5 {[%clk
0:04:39.6]} 20. Ref2 {[%clk 0:03:04.2]} 20... g6 {[%clk 0:04:33.5]} 21. g4
{[%clk 0:02:46.9]} 21... Ba8 {[%clk 0:04:26.8]} 22. h4 {[%clk 0:02:43]} 22...
Qb7 {[%clk 0:04:17.8]} 23. Rh2 {[%clk 0:02:39.9]} 23... Bd6 {[%clk 0:04:02.7]}
24. g5 {[%clk 0:02:35.6]} 24... Nh5 {[%clk 0:04:01.1]} 25. Be4 {[%clk
0:02:33.6]} 25... Qxe4 {[%clk 0:03:59.1]} 0-1

[Event "Live Chess"]
[Site "Chess.com"]
[Date "2024.06.02"]
[Round "-"]
[White "Greenbecker"]
[Black "TheSmoulderingMaster"]
[Result "1-0"]
[WhiteElo "1746"]
[BlackElo "1780"]
[TimeControl "300"]
[EndTime "2:26:27 PDT"]
[Termination "Greenbecker won by resignation"]

1. e4 {[%clk 0:04:56.7]} 1... c5 {[%clk 0:04:58.4]} 2. g3 {[%clk 0:04:54.7]}
2... d6 {[%clk 0:04:57.6]} 3. Bg2 {[%clk 0:04:54.3]} 3... Nc6 {[%clk 0:04:56.5]}
4. Ne2 {[%clk 0:04:53.8]} 4... Nf6 {[%clk 0:04:55.1]} 5. O-O {[%clk 0:04:52.6]}
5... g6 {[%clk 0:04:54.2]} 6. d4 {[%clk 0:04:51.2]} 6... cxd4 {[%clk 0:04:52.3]}
7. Nxd4 {[%clk 0:04:50.3]} 7... Bg7 {[%clk 0:04:51.8]} 8. Nxc6 {[%clk
0:04:48.4]} 8... bxc6 {[%clk 0:04:50.2]} 9. e5 {[%clk 0:04:47.6]} 9... Nd7
{[%clk 0:04:46]} 10. exd6 {[%clk 0:04:41.8]} 10... exd6 {[%clk 0:04:42.9]} 11.
Bxc6 {[%clk 0:04:38.4]} 11... O-O {[%clk 0:04:40.7]} 12. Bxa8 {[%clk 0:04:35.7]}
12... Ba6 {[%clk 0:04:36.7]} 13. Bg2 {[%clk 0:04:22.3]} 13... Bxf1 {[%clk
0:04:33.9]} 14. Kxf1 {[%clk 0:04:21]} 14... Ne5 {[%clk 0:04:33]} 15. Bf4 {[%clk
0:04:17.5]} 15... Qd7 {[%clk 0:04:30.1]} 16. Nc3 {[%clk 0:04:13.3]} 16... Qf5
{[%clk 0:04:27.5]} 17. Bxe5 {[%clk 0:04:04.7]} 17... dxe5 {[%clk 0:04:22.8]} 18.
Qd3 {[%clk 0:04:00.5]} 18... Qe6 {[%clk 0:04:19.3]} 19. Rd1 {[%clk 0:03:55.2]}
19... h5 {[%clk 0:04:14.8]} 20. Qd7 {[%clk 0:03:50.1]} 20... Qc4+ {[%clk
0:04:09.3]} 21. Kg1 {[%clk 0:03:44.3]} 21... Qb4 {[%clk 0:04:08.2]} 22. Qb5
{[%clk 0:03:36.2]} 22... Qg4 {[%clk 0:04:03.5]} 23. Qe2 {[%clk 0:03:26.5]} 23...
Qb4 {[%clk 0:03:59.6]} 24. Qb5 {[%clk 0:03:18.8]} 24... Qg4 {[%clk 0:03:56.6]}
25. h3 {[%clk 0:03:14.4]} 25... Qf5 {[%clk 0:03:49.9]} 26. Qd3 {[%clk
0:03:07.2]} 26... Qe6 {[%clk 0:03:44]} 27. Qd5 {[%clk 0:03:00.1]} 27... Qd7
{[%clk 0:03:43.6]} 28. Qxd7 {[%clk 0:02:56.5]} 1-0

[Event "Live Chess"]
[Site "Chess.com"]
[Date "2024.06.02"]
[Round "-"]
[White "Brooms1989"]
[Black "seasidecastle27"]
[Result "1/2-1/2"]
[WhiteElo "1176"]
[BlackElo "1910"]
[TimeControl "300"]
[EndTime "2:27:31 PDT"]
[Termination "Game drawn by repetition"]

1. e4 {[%clk 0:04:57.7]} 1... e6 {[%clk 0:04:59.2]} 2. d4 {[%clk 0:04:56]} 2...
d5 {[%clk 0:04:58.4]} 3. Bd3 {[%clk 0:04:55.6]} 3... c5 {[%clk 0:04:56.3]} 4.
exd5 {[%clk 0:04:54.6]} 4... exd5 {[%clk 0:04:54.2]} 5. Nf3 {[%clk 0:04:52.7]}
5... Nc6 {[%clk 0:04:52.6]} 6. dxc5 {[%clk 0:04:49.5]} 6... Bxc5 {[%clk
0:04:51]} 7. O-O {[%clk 0:04:48.9]} 7... Nf6 {[%clk 0:04:48.1]} 8. Re1+ {[%clk
0:04:45.3]} 8... Be7 {[%clk 0:04:46.3]} 9. c3 {[%clk 0:04:39.3]} 9... O-O {[%clk
0:04:45]} 10. Bg5 {[%clk 0:04:35.8]} 10... Bg4 {[%clk 0:04:39.5]} 11. h3 {[%clk
0:04:33.7]} 11... Bh5 {[%clk 0:04:38]} 12. Be2 {[%clk 0:04:31.8]} 12... Re8
{[%clk 0:04:34.3]} 13. Nbd2 {[%clk 0:04:29.5]} 13... Rc8 {[%clk 0:04:30.5]} 14.
Nb3 {[%clk 0:04:28]} 14... Ne4 {[%clk 0:04:22.9]} 15. Bxe7 {[%clk 0:04:24.1]}
15... Rxe7 {[%clk 0:04:17.9]} 16. Nfd4 {[%clk 0:04:14.3]} 16... Bxe2 {[%clk
0:04:10.6]} 17. Rxe2 {[%clk 0:04:07.7]} 17... Nxd4 {[%clk 0:04:01.7]} 18. Nxd4
{[%clk 0:04:05.5]} 18... Qd7 {[%clk 0:03:52.1]} 19. Qb3 {[%clk 0:03:46.8]} 19...
Rce8 {[%clk 0:03:45.6]} 20. Qb4 {[%clk 0:03:28.8]} 20... b6 {[%clk 0:03:02.6]}
21. Rae1 {[%clk 0:03:19.4]} 21... Nd6 {[%clk 0:02:40.2]} 22. Rxe7 {[%clk
0:03:00.7]} 22... Rxe7 {[%clk 0:02:39]} 23. Rxe7 {[%clk 0:03:00.4]} 23... Qxe7
{[%clk 0:02:38.1]} 24. Qa4 {[%clk 0:02:39.6]} 24... Qe1+ {[%clk 0:02:34.8]} 25.
Kh2 {[%clk 0:02:38]} 25... Qe5+ {[%clk 0:02:32.5]} 26. Kg1 {[%clk 0:02:36.1]}
26... Qe1+ {[%clk 0:02:31.1]} 27. Kh2 {[%clk 0:02:35.5]} 27... Qe5+ {[%clk
0:02:30.1]} 28. Kg1 {[%clk 0:02:34.8]} 28... Qe1+ {[%clk 0:02:29.2]} 1/2-1/2

[Event "Live Chess"]
[Site "Chess.com"]
[Date "2024.06.02"]
[Round "-"]
[White "booktrunk"]
[Black "missedJariChance"]
[Result "1-0"]
[WhiteElo "1509"]
[BlackElo "1347"]
[TimeControl "300"]
[EndTime "2:27:52 PDT"]
[Termination "booktrunk won by resignation"]

1. d4 {[%clk 0:04:51.4]} 1... d5 {[%clk 0:04:57.6]} 2. Nc3 {[%clk 0:04:48.5]}
2... e6 {[%clk 0:04:53.1]} 3. Be3 {[%clk 0:04:47]} 3... c5 {[%clk 0:04:51.2]} 4.
dxc5 {[%clk 0:04:45.3]} 4... Nc6 {[%clk 0:04:49.2]} 5. a3 {[%clk 0:04:42.7]}
5... Nf6 {[%clk 0:04:47.1]} 6. f3 {[%clk 0:04:38.1]} 6... Be7 {[%clk 0:04:35.9]}
7. Bf2 {[%clk 0:04:35.7]} 7... d4 {[%clk 0:04:30.1]} 8. Ne4 {[%clk 0:04:30.8]}
8... Nxe4 {[%clk 0:04:26.7]} 9. fxe4 {[%clk 0:04:29.1]} 9... Bxc5 {[%clk
0:04:22.7]} 10. b4 {[%clk 0:04:28.1]} 10... Be7 {[%clk 0:04:17.3]} 11. e3 {[%clk
0:04:19.1]} 11... dxe3 {[%clk 0:04:12.5]} 12. Qxd8+ {[%clk 0:04:17.7]} 12...
Bxd8 {[%clk 0:04:10.4]} 13. Bxe3 {[%clk 0:04:15.3]} 13... O-O {[%clk 0:04:01.5]}
14. O-O-O {[%clk 0:04:13.1]} 14... Bf6 {[%clk 0:03:53.8]} 15. Nf3 {[%clk
0:04:08.6]} 15... Ne5 {[%clk 0:03:47.2]} 16. Nxe5 {[%clk 0:04:03.9]} 16... Bxe5
{[%clk 0:03:45.6]} 17. g3 {[%clk 0:04:01.8]} 17... b6 {[%clk 0:03:42.8]} 18. Bc4
{[%clk 0:03:58.8]} 18... Bb7 {[%clk 0:03:40.4]} 19. Bd3 {[%clk 0:03:54.8]} 19...
Rac8 {[%clk 0:03:33.1]} 20. Rhf1 {[%clk 0:03:51.7]} 20... Rfd8 {[%clk
0:03:29.7]} 21. Rf2 {[%clk 0:03:46.7]} 21... h6 {[%clk 0:03:23.5]} 22. Bf4
{[%clk 0:03:38.7]} 22... Bf6 {[%clk 0:03:07.9]} 23. e5 {[%clk 0:03:33.4]} 23...
Bg5 {[%clk 0:03:02.4]} 24. Bxg5 {[%clk 0:03:31.4]} 24... hxg5 {[%clk 0:03:01.1]}
25. Bb5 {[%clk 0:03:25.1]} 25... Rxd1+ {[%clk 0:02:50]} 26. Kxd1 {[%clk
0:03:22.3]} 26... Rc3 {[%clk 0:02:48.2]} 27. a4 {[%clk 0:03:17]} 27... a6 {[%clk
0:02:30]} 28. Bf1 {[%clk 0:03:10.7]} 28... Re3 {[%clk 0:02:11.8]} 29. Bg2 {[%clk
0:02:53.1]} 29... Bxg2 {[%clk 0:02:08.1]} 30. Rxg2 {[%clk 0:02:53]} 30... Rxe5
{[%clk 0:02:05]} 31. Rd2 {[%clk 0:02:50.7]} 31... Re4 {[%clk 0:02:03.3]} 32. c3
{[%clk 0:02:49.6]} 32... Re3 {[%clk 0:01:43.7]} 33. Kc2 {[%clk 0:02:46.5]} 33...
Kh7 {[%clk 0:01:41.1]} 34. Kb3 {[%clk 0:02:44.2]} 34... Kg6 {[%clk 0:01:38.4]}
35. Rd6 {[%clk 0:02:42.5]} 35... Re2 {[%clk 0:01:27.7]} 36. Rxb6 {[%clk
0:02:39.3]} 36... Rxh2 {[%clk 0:01:26.4]} 37. Rxa6 {[%clk 0:02:38]} 37... Rd2
{[%clk 0:01:20]} 38. Rc6 {[%clk 0:02:36.3]} 38... Rd5 {[%clk 0:01:14.5]} 39. a5
{[%clk 0:02:34.2]} 39... Kf6 {[%clk 0:01:10.2]} 40. a6 {[%clk 0:02:32.5]} 40...
Rd7 {[%clk 0:01:06.7]} 41. b5 {[%clk 0:02:30.8]} 41... Kf5 {[%clk 0:01:03.1]}
42. b6 {[%clk 0:02:29.5]} 42... e5 {[%clk 0:00:59.2]} 43. b7 {[%clk 0:02:28.2]}
1-0

[Event "Live Chess"]
[Site "Chess.com"]
[Date "2024.06.02"]
[Round "-"]
[White "TigerTank70"]
[Black "WorcesterYork"]
[Result "0-1"]
[WhiteElo "2229"]
[BlackElo "2485"]
[TimeControl "300"]
[EndTime "2:27:58 PDT"]
[Termination "WorcesterYork won by resignation"]

1. e4 {[%clk 0:04:58.5]} 1... c5 {[%clk 0:04:59.1]} 2. d4 {[%clk 0:04:57.3]}
2... cxd4 {[%clk 0:04:58.2]} 3. c3 {[%clk 0:04:57]} 3... dxc3 {[%clk 0:04:58.1]}
4. Nxc3 {[%clk 0:04:56.5]} 4... Nc6 {[%clk 0:04:57.7]} 5. Nf3 {[%clk 0:04:56]}
5... d6 {[%clk 0:04:57.3]} 6. Bc4 {[%clk 0:04:55.5]} 6... a6 {[%clk 0:04:56.6]}
7. Qe2 {[%clk 0:04:54.8]} 7... Nf6 {[%clk 0:04:56.2]} 8. O-O {[%clk 0:04:52.5]}
8... Bg4 {[%clk 0:04:55.1]} 9. Rd1 {[%clk 0:04:29.7]} 9... e6 {[%clk 0:04:52.8]}
10. Bg5 {[%clk 0:04:23.5]} 10... Qb8 {[%clk 0:04:50.4]} 11. Bf4 {[%clk 0:04:12]}
11... Be7 {[%clk 0:04:47.3]} 12. h3 {[%clk 0:04:09.3]} 12... Bxf3 {[%clk
0:04:46]} 13. Qxf3 {[%clk 0:04:08.5]} 13... Ne5 {[%clk 0:04:45.3]} 14. Bxe5
{[%clk 0:04:04.9]} 14... dxe5 {[%clk 0:04:45.2]} 15. g4 {[%clk 0:03:45.5]} 15...
h6 {[%clk 0:04:37.8]} 16. h4 {[%clk 0:03:39.6]} 16... g5 {[%clk 0:04:36.4]} 17.
Bb3 {[%clk 0:03:09]} 17... gxh4 {[%clk 0:04:32.1]} 18. Rac1 {[%clk 0:03:00.1]}
18... Rg8 {[%clk 0:04:31]} 19. Kf1 {[%clk 0:02:53.7]} 19... Rxg4 {[%clk
0:04:28]} 20. Na4 {[%clk 0:02:42.8]} 20... b5 {[%clk 0:04:24.3]} 21. Nc5 {[%clk
0:02:39.6]} 21... Rf4 {[%clk 0:04:23.7]} 22. Qd3 {[%clk 0:02:25.3]} 22... Bxc5
{[%clk 0:04:16.5]} 23. Rxc5 {[%clk 0:02:22.5]} 23... Nxe4 {[%clk 0:04:11.7]} 24.
Qd7+ {[%clk 0:02:19.8]} 24... Kf8 {[%clk 0:04:10.7]} 25. Rc7 {[%clk 0:02:09]}
25... Qb6 {[%clk 0:04:01.1]} 0-1